[Event "RUS-chT Men Rapid 2019"]
[Site "Sochi"]
[Date "2019.10.19"]
[Round "8.26"]
[White "Gurvich, Vitaly"]
[Black "Shubin, Kirill"]
[Result "1/2-1/2"]
[ECO "E17"]
[WhiteElo "2278"]
[BlackElo "2416"]
[Annotator "NA"]
[PlyCount "50"]
[EventDate "2019.10.18"]
[EventType "swiss"]
[EventCountry "RUS"]
[SourceTitle "playchess.com"]
[Source "ChessBase"]
[SourceQuality "1"]
[TimeControl "900+10"]

1. d4 {[%emt 0:06:43]} e6 {[%emt 0:00:03]} 2. c4 {[%emt 0:00:02]} Nf6 {[%emt 0:00:02]} 3. Nf3 {[%emt 0:00:03]} b6 {[%emt 0:00:04]} 4. g3 {[%emt 0:00:01]} Bb7 {[%emt 0:00:01]} 5. Bg2 {[%emt 0:00:01]} Be7 {[%emt 0:00:01]} 6. Nc3 {[%emt 0:00:02]} Ne4 {[%emt 0:00:04]} 7. Bd2 {[%emt 0:00:01]} Bf6 {[%emt 0:00:47]} 8. Qc2 {[%emt 0:00:24]} Nxd2 {[%emt 0:00:02]} 9. Qxd2 {[%emt 0:00:01]} d6 {[%emt 0:00:03]} 10. O-O {[%emt 0:00:04]} O-O {[%emt 0:00:15]} 11. e4 {[%emt 0:00:19]} Nd7 {[%emt 0:00:01]} 12. Rfe1 {[%emt 0:00:04]} e5 {[%emt 0:00:09]} 13. Rad1 {[%emt 0:00:09]} g6 {[%emt 0:00:52]} 14. b3 {[%emt 0:00:11]} Bg7 {[%emt 0:00:10]} 15. h4 {[%emt 0:00:02]} Re8 {[%emt 0:01:34]} 16. h5 {[%emt 0:00:37]} a5 {[%emt 0:00:49]} 17. Bh3 {[%emt 0:00:42]} exd4 {[%emt 0:00:09]} 18. Nxd4 {[%emt 0:00:02]} Nc5 {[%emt 0:01:15]} 19. hxg6 {[%emt 0:00:18]} hxg6 {[%emt 0:00:16]} 20. Bg2 {[%emt 0:00:06]} Qd7 {[%emt 0:00:38]} 21. Nd5 {[%emt 0:00:33]} Bxd5 {[%emt 0:02:00]} 22. cxd5 {[%emt 0:03:05]} Qg4 {[%emt 0:00:16]} 23. Bf3 {[%emt 0:00:36]} Qh3 {[%emt 0:00:14]} 24. Bg2 {[%emt 0:00:03]} Qg4 {[%emt 0:00:01]} 25. Bf3 {[%emt 0:00:01]} Qh3 {[%emt 0:00:01]} 1/2-1/2

[Event "RUS-chT Men Rapid 2019"]
[Site "Sochi"]
[Date "2019.10.19"]
[Round "8.28"]
[White "Girshgorn, Leonid"]
[Black "Yeritsyan, Aram"]
[Result "1/2-1/2"]
[ECO "A05"]
[WhiteElo "2183"]
[BlackElo "2271"]
[Annotator "NA"]
[PlyCount "87"]
[EventDate "2019.10.18"]
[EventType "swiss"]
[EventCountry "RUS"]
[SourceTitle "playchess.com"]
[Source "ChessBase"]
[SourceQuality "1"]
[TimeControl "900+10"]

1. Nf3 {[%emt 0:00:00]} Nf6 {[%emt 0:00:00]} 2. g3 {[%emt 0:00:00]} b5 3. Bg2 Bb7 {[%emt 0:00:00]} 4. O-O {[%emt 0:00:00]} e6 {[%emt 0:00:00]} 5. d3 {[%emt 0:00:01]} c5 {[%emt 0:00:01]} 6. e4 {[%emt 0:00:05]} d6 {[%emt 0:00:01]} 7. Re1 {[%emt 0:00:05]} Be7 {[%emt 0:00:01]} 8. Nbd2 {[%emt 0:00:05]} Nbd7 {[%emt 0:00:05]} 9. d4 {[%emt 0:00:35]} cxd4 {[%emt 0:01:04]} 10. Nxd4 {[%emt 0:00:01]} Qb6 {[%emt 0:00:27]} 11. c3 {[%emt 0:00:40]} O-O {[%emt 0:00:07]} 12. a4 {[%emt 0:00:21]} a6 {[%emt 0:00:31]} 13. Qe2 {[%emt 0:00:05]} bxa4 {[%emt 0:01:19]} 14. Rxa4 {[%emt 0:00:08]} Nc5 {[%emt 0:00:15]} 15. Ra1 {[%emt 0:00:20]} d5 {[%emt 0:00:39]} 16. e5 {[%emt 0:00:35]} Nfd7 {[%emt 0:00:10]} 17. b4 {[%emt 0:00:46]} Ne4 {[%emt 0:00:06]} 18. Nxe4 {[%emt 0:00:22]} dxe4 {[%emt 0:00:03]} 19. Bxe4 {[%emt 0:01:00]} Rfc8 {[%emt 0:00:21]} 20. Bxb7 {[%emt 0:00:44]} Qxb7 {[%emt 0:00:01]} 21. Bb2 {[%emt 0:01:06]} Nb6 {[%emt 0:00:08]} 22. Nb3 {[%emt 0:00:17]} Nd5 {[%emt 0:01:00]} 23. Na5 {[%emt 0:01:29]} Qb6 {[%emt 0:00:17]} 24. Rac1 {[%emt 0:00:35]} Rc7 {[%emt 0:00:32]} 25. Nc4 {[%emt 0:02:17]} Qc6 {[%emt 0:00:48]} 26. Ne3 {[%emt 0:00:42]} Nb6 {[%emt 0:00:01]} 27. Ba3 {[%emt 0:01:08]} Qa4 {[%emt 0:00:35]} 28. Bb2 {[%emt 0:01:03]} Qb3 {[%emt 0:01:11]} 29. Qc2 {[%emt 0:01:14]} Qxc2 {[%emt 0:00:15]} 30. Rxc2 {[%emt 0:00:01]} Na4 {[%emt 0:02:21]} 31. Rec1 {[%emt 0:01:21]} Kf8 {[%emt 0:03:10]} 32. Kf1 {[%emt 0:00:28]} h5 {[%emt 0:00:20]} 33. h4 {[%emt 0:00:25]} g6 {[%emt 0:00:01]} 34. Ke2 {[%emt 0:00:03]} Rac8 {[%emt 0:00:10]} 35. Ba1 {[%emt 0:00:10]} Ke8 {[%emt 0:00:32]} 36. Kd3 {[%emt 0:00:38]} Rd8+ {[%emt 0:00:20]} 37. Ke4 {[%emt 0:00:08]} Rdc8 {[%emt 0:00:04]} 38. Kd3 {[%emt 0:00:42]} Rd7+ {[%emt 0:00:04]} 39. Ke2 {[%emt 0:00:00]} Rdc7 {[%emt 0:00:01]} 40. Kd3 {[%emt 0:00:33]} Rd7+ {[%emt 0:00:02]} 41. Ke4 {[%emt 0:00:01]} Rdc7 {[%emt 0:00:01]} 42. Kd3 {[%emt 0:00:01]} Rd7+ {[%emt 0:00:01]} 43. Ke2 {[%emt 0:00:00]} Rdc7 {[%emt 0:00:01]} 44. Kd3 {[%emt 0:00:16]} 1/2-1/2

[Event "RUS-chT Men Rapid 2019"]
[Site "Sochi"]
[Date "2019.10.19"]
[Round "9.1"]
[White "Kokarev, Dmitry"]
[Black "Grachev, Boris"]
[Result "1-0"]
[ECO "B46"]
[WhiteElo "2593"]
[BlackElo "2621"]
[Annotator "ChessBase"]
[PlyCount "149"]
[EventDate "2019.10.18"]
[EventType "swiss"]
[EventCountry "RUS"]
[SourceTitle "playchess.com"]
[Source "ChessBase"]
[SourceQuality "1"]
[TimeControl "900+10"]

1. e4 {[%emt 0:00:00]} c5 {[%emt 0:00:00]} 2. Nf3 {[%emt 0:00:00]} e6 {[%emt 0:00:02]} 3. d4 {[%emt 0:00:00]} cxd4 {[%emt 0:00:02]} 4. Nxd4 {[%emt 0:00:00]} Nc6 {[%emt 0:00:01]} 5. Nc3 {[%emt 0:00:03]} a6 {[%emt 0:00:02]} 6. Nxc6 {[%emt 0:00:09]} bxc6 {[%emt 0:00:02]} 7. Bd3 {[%emt 0:00:03]} d5 {[%emt 0:00:02]} 8. O-O {[%emt 0:00:08]} Nf6 {[%emt 0:00:02]} 9. Qf3 {[%emt 0:00:30]} Be7 {[%emt 0:00:11]} 10. Bf4 {[%emt 0:00:22]} O-O {[%emt 0:00:15]} 11. b3 {[%emt 0:00:21]} Bb7 {[%emt 0:02:13]} 12. Qh3 {[%emt 0:00:43]} g6 {[%emt 0:00:05]} 13. e5 {[%emt 0:00:39]} Nd7 {[%emt 0:01:22]} 14. Na4 {[%emt 0:00:03]} c5 {[%emt 0:00:59]} 15. c4 {[%emt 0:00:22]} d4 {[%emt 0:00:08]} 16. Rae1 {[%emt 0:00:52]} Re8 {[%emt 0:00:56]} 17. Bh6 {[%emt 0:00:37]} Bg5 {[%emt 0:01:41]} 18. f4 {[%emt 0:00:14]} Bxh6 {[%emt 0:00:06]} 19. Qxh6 {[%emt 0:00:02]} Qe7 {[%emt 0:00:12]} 20. Nb2 {[%emt 0:00:26]} Qf8 {[%emt 0:00:23]} 21. Qh4 {[%emt 0:00:07]} a5 {[%emt 0:00:29]} 22. Be4 {[%emt 0:00:26]} Bxe4 {[%emt 0:00:03]} 23. Rxe4 {[%emt 0:00:02]} f5 {[%emt 0:01:38]} 24. exf6 {[%emt 0:00:04]} Qxf6 {[%emt 0:00:01]} 25. Qh3 {[%emt 0:01:17]} Qf5 {[%emt 0:00:07]} 26. Qf3 {[%emt 0:00:02]} h5 {[%emt 0:02:22]} 27. Rfe1 {[%emt 0:00:09]} Ra6 {[%emt 0:00:35]} 28. Nd3 {[%emt 0:01:03]} Rf8 {[%emt 0:00:32]} 29. h3 {[%emt 0:00:24]} a4 {[%emt 0:01:45]} 30. b4 {[%emt 0:00:36]} cxb4 {[%emt 0:00:02]} 31. Rxd4 {[%emt 0:00:30]} Ra7 {[%emt 0:01:37]} 32. Qc6 {[%emt 0:00:41]} Qf7 {[%emt 0:00:33]} 33. Nxb4 {[%emt 0:00:43]} e5 {[%emt 0:00:28]} 34. Rd6 {[%emt 0:00:01]} Qxf4 {[%emt 0:00:42]} 35. Nd3 {[%emt 0:00:02]} Qf5 {[%emt 0:00:29]} 36. Rxg6+ {[%emt 0:00:25]} Kh7 {[%emt 0:00:00]} 37. Rd6 {[%emt 0:00:36]} Rf6 {[%emt 0:00:22]} 38. Rxf6 {[%emt 0:00:11]} Qxf6 {[%emt 0:00:22]} 39. Qxf6 {[%emt 0:00:23]} Nxf6 {[%emt 0:00:01]} 40. Rxe5 {[%emt 0:00:06]} Rd7 {[%emt 0:00:06]} 41. Nf4 {[%emt 0:00:36]} Rd1+ {[%emt 0:00:26]} 42. Kh2 {[%emt 0:00:05]} h4 {[%emt 0:00:02]} 43. Nd5 {[%emt 0:00:12]} Ng8 {[%emt 0:00:24]} 44. Rh5+ {[%emt 0:00:11]} Kg6 {[%emt 0:00:02]} 45. Rxh4 {[%emt 0:00:02]} Rd2 {[%emt 0:00:05]} 46. Nc3 {[%emt 0:00:13]} a3 {[%emt 0:00:11]} 47. Rg4+ {[%emt 0:00:14]} Kf7 {[%emt 0:00:03]} 48. Rg3 {[%emt 0:00:02]} Ne7 {[%emt 0:00:13]} 49. Nb5 {[%emt 0:00:11]} Nf5 {[%emt 0:00:08]} 50. Rf3 {[%emt 0:00:19]} Kg6 {[%emt 0:00:11]} 51. Rxa3 {[%emt 0:00:05]} Re2 {[%emt 0:00:20]} 52. Rf3 {[%emt 0:00:17]} Rxa2 {[%emt 0:00:06]} 53. c5 {[%emt 0:00:10]} Rb2 {[%emt 0:00:18]} 54. Nc3 {[%emt 0:00:15]} Nd4 {[%emt 0:00:16]} 55. Rd3 {[%emt 0:00:11]} Ne6 {[%emt 0:00:04]} 56. c6 {[%emt 0:00:08]} Rc2 {[%emt 0:00:08]} 57. Nd5 {[%emt 0:00:48]} Rc5 {[%emt 0:00:18]} 58. c7 {[%emt 0:00:12]} Nxc7 {[%emt 0:00:13]} 59. Nxc7 {[%emt 0:00:02]} Rxc7 {[%emt 0:00:01]} 60. h4 {[%emt 0:00:09]} Kh5 {[%emt 0:00:08]} 61. Kh3 {[%emt 0:00:02]} Rc1 {[%emt 0:00:05]} 62. Rd5+ {[%emt 0:00:03]} Kh6 {[%emt 0:00:02]} 63. Rd6+ {[%emt 0:00:05]} Kh7 {[%emt 0:00:01]} 64. h5 {[%emt 0:00:08]} Rc4 {[%emt 0:00:06]} 65. g4 {[%emt 0:00:02]} Kg7 {[%emt 0:00:05]} 66. Kh4 {[%emt 0:00:03]} Kh7 {[%emt 0:00:01]} 67. Rd5 {[%emt 0:00:05]} Kh6 {[%emt 0:00:03]} 68. Rd6+ {[%emt 0:00:06]} Kh7 {[%emt 0:00:01]} 69. h6 {[%emt 0:00:08]} Rc1 {[%emt 0:00:12]} 70. Kh5 {[%emt 0:00:03]} Rh1+ {[%emt 0:00:03]} 71. Kg5 {[%emt 0:00:02]} Rg1 {[%emt 0:00:14]} 72. Rd7+ {[%emt 0:00:02]} Kg8 {[%emt 0:00:09]} 73. Kh5 {[%emt 0:00:04]} Ra1 {[%emt 0:00:18]} 74. g5 {[%emt 0:00:03]} Ra6 {[%emt 0:00:07]} 75. Rd8+ {[%emt 0:00:10]} 1-0

[Event "RUS-chT Men Rapid 2019"]
[Site "Sochi"]
[Date "2019.10.19"]
[Round "9.2"]
[White "Potkin, Vladimir"]
[Black "Ulybin, Mikhail"]
[Result "0-1"]
[ECO "D06"]
[WhiteElo "2583"]
[BlackElo "2455"]
[Annotator "ChessBase"]
[PlyCount "54"]
[EventDate "2019.10.18"]
[EventType "swiss"]
[EventCountry "RUS"]
[SourceTitle "playchess.com"]
[Source "ChessBase"]
[SourceQuality "1"]
[TimeControl "900+10"]

1. d4 {[%emt 0:00:00]} d5 {[%emt 0:00:00]} 2. c4 {[%emt 0:00:00]} c5 {[%emt 0:00:03]} 3. cxd5 {[%emt 0:00:13]} Qxd5 {[%emt 0:00:06]} 4. Nf3 {[%emt 0:00:29]} cxd4 {[%emt 0:00:06]} 5. Nc3 {[%emt 0:00:02]} Qa5 {[%emt 0:00:08]} 6. Nxd4 {[%emt 0:00:09]} Nf6 {[%emt 0:00:06]} 7. g3 {[%emt 0:00:13]} e5 {[%emt 0:00:11]} 8. Nb3 {[%emt 0:00:09]} Qc7 {[%emt 0:00:08]} 9. Bg2 {[%emt 0:00:01]} Bb4 {[%emt 0:00:07]} 10. Bd2 {[%emt 0:01:52]} O-O {[%emt 0:00:14]} 11. O-O {[%emt 0:00:53]} Nc6 {[%emt 0:00:32]} 12. a3 {[%emt 0:00:39]} Bxc3 {[%emt 0:00:22]} 13. Bxc3 {[%emt 0:00:02]} Bf5 {[%emt 0:01:02]} 14. Nc5 {[%emt 0:01:28]} Rac8 {[%emt 0:04:32]} 15. Rc1 {[%emt 0:00:37]} Rfd8 {[%emt 0:02:32]} 16. Qb3 {[%emt 0:03:39]} b6 {[%emt 0:01:48]} 17. Na6 {[%emt 0:00:02]} Nd4 {[%emt 0:00:22]} 18. Qd1 {[%emt 0:01:07]} Qc4 {[%emt 0:01:47]} 19. Bxd4 {[%emt 0:03:23]} Qxa6 {[%emt 0:00:09]} 20. Rxc8 {[%emt 0:00:03]} Qxc8 {[%emt 0:00:13]} 21. Bxe5 {[%emt 0:00:01]} Rxd1 {[%emt 0:00:08]} 22. Rxd1 {[%emt 0:00:01]} h6 {[%emt 0:00:14]} 23. f3 {[%emt 0:00:43]} Qc5+ {[%emt 0:00:29]} 24. Bd4 {[%emt 0:00:06]} Qc2 {[%emt 0:00:05]} 25. Re1 {[%emt 0:00:02]} Qd2 {[%emt 0:00:17]} 26. Bc3 {[%emt 0:00:01]} Qe3+ {[%emt 0:00:07]} 27. Kf1 {[%emt 0:00:03]} Nd5 {[%emt 0:00:11]} 0-1

[Event "RUS-chT Men Rapid 2019"]
[Site "Sochi"]
[Date "2019.10.19"]
[Round "9.3"]
[White "Pingin, Artem"]
[Black "Savchenko, Boris"]
[Result "1/2-1/2"]
[ECO "C18"]
[WhiteElo "2048"]
[BlackElo "2581"]
[Annotator "ChessBase"]
[PlyCount "183"]
[EventDate "2019.10.18"]
[EventType "swiss"]
[EventCountry "RUS"]
[SourceTitle "playchess.com"]
[Source "ChessBase"]
[SourceQuality "1"]
[TimeControl "900+10"]

1. e4 {[%emt 0:00:00]} e6 {[%emt 0:00:00]} 2. d4 {[%emt 0:00:00]} d5 {[%emt 0:00:00]} 3. Nc3 {[%emt 0:00:00]} Bb4 {[%emt 0:00:00]} 4. e5 c5 {[%emt 0:00:00]} 5. a3 {[%emt 0:00:00]} Bxc3+ {[%emt 0:00:02]} 6. bxc3 {[%emt 0:00:00]} Qa5 {[%emt 0:00:01]} 7. Bd2 {[%emt 0:00:01]} Qa4 {[%emt 0:00:02]} 8. Qb1 {[%emt 0:00:01]} c4 {[%emt 0:00:02]} 9. Nh3 {[%emt 0:00:21]} Nc6 {[%emt 0:00:03]} 10. Nf4 {[%emt 0:00:02]} Bd7 {[%emt 0:00:02]} 11. g3 {[%emt 0:00:37]} O-O-O {[%emt 0:00:05]} 12. Bh3 {[%emt 0:00:02]} h6 {[%emt 0:06:07]} 13. O-O {[%emt 0:01:03]} Kb8 {[%emt 0:00:19]} 14. Qb2 {[%emt 0:01:44]} Bc8 {[%emt 0:01:47]} 15. Rae1 {[%emt 0:01:11]} Ka8 {[%emt 0:01:58]} 16. Qc1 {[%emt 0:00:27]} a6 {[%emt 0:00:06]} 17. Ng2 {[%emt 0:00:06]} Nge7 {[%emt 0:02:04]} 18. Ne3 {[%emt 0:00:25]} Na7 {[%emt 0:00:04]} 19. f4 {[%emt 0:01:33]} Nb5 {[%emt 0:00:25]} 20. f5 {[%emt 0:00:30]} exf5 {[%emt 0:00:06]} 21. Bxf5 {[%emt 0:00:34]} Nxf5 {[%emt 0:01:31]} 22. Nxf5 {[%emt 0:00:02]} Rhg8 {[%emt 0:00:08]} 23. Ne7 {[%emt 0:02:09]} Rgf8 {[%emt 0:00:07]} 24. Nxc8 {[%emt 0:00:40]} Rxc8 {[%emt 0:00:01]} 25. Qd1 {[%emt 0:01:28]} Nxa3 {[%emt 0:00:46]} 26. Qf3 {[%emt 0:00:15]} Qc6 {[%emt 0:02:43]} 27. e6 {[%emt 0:01:34]} fxe6 {[%emt 0:00:21]} 28. Qxf8 {[%emt 0:00:02]} Rxf8 {[%emt 0:00:01]} 29. Rxf8+ {[%emt 0:00:02]} Ka7 {[%emt 0:00:01]} 30. Bf4 {[%emt 0:00:26]} Nb5 {[%emt 0:00:47]} 31. Bb8+ {[%emt 0:00:53]} Kb6 {[%emt 0:00:02]} 32. Rf3 {[%emt 0:00:33]} Qc8 {[%emt 0:00:21]} 33. Be5 {[%emt 0:00:10]} g5 {[%emt 0:00:08]} 34. Bg7 {[%emt 0:00:09]} a5 {[%emt 0:00:14]} 35. Bf8 {[%emt 0:00:14]} Ka6 {[%emt 0:00:08]} 36. Bxh6 {[%emt 0:01:17]} g4 {[%emt 0:00:14]} 37. Rfe3 {[%emt 0:00:13]} e5 {[%emt 0:00:11]} 38. Rxe5 {[%emt 0:00:26]} Nxc3 {[%emt 0:00:01]} 39. Bd2 {[%emt 0:00:45]} Ne4 {[%emt 0:00:06]} 40. Bxa5 {[%emt 0:00:02]} Qf8 {[%emt 0:00:15]} 41. Rf1 {[%emt 0:00:16]} Qa3 {[%emt 0:00:16]} 42. Rxd5 {[%emt 0:00:17]} Qe3+ {[%emt 0:00:05]} 43. Kg2 {[%emt 0:00:10]} Qe2+ {[%emt 0:00:14]} 44. Kg1 {[%emt 0:00:01]} Qe3+ {[%emt 0:00:01]} 45. Kg2 {[%emt 0:00:00]} b6 {[%emt 0:00:09]} 46. Bb4 {[%emt 0:00:08]} Qe2+ {[%emt 0:00:07]} 47. Kg1 {[%emt 0:00:01]} Ng5 {[%emt 0:00:27]} 48. Ra1+ {[%emt 0:00:54]} Kb7 {[%emt 0:00:01]} 49. Rxg5 {[%emt 0:00:01]} Qe3+ {[%emt 0:00:03]} 50. Kg2 {[%emt 0:00:05]} Qxg5 {[%emt 0:00:03]} 51. c3 {[%emt 0:00:07]} Kc6 {[%emt 0:00:05]} 52. Rf1 {[%emt 0:00:02]} Qe3 {[%emt 0:00:06]} 53. Rf6+ {[%emt 0:00:05]} Kb5 {[%emt 0:00:02]} 54. Rf4 {[%emt 0:00:11]} Qe2+ {[%emt 0:00:03]} 55. Rf2 {[%emt 0:00:06]} Qe4+ {[%emt 0:00:02]} 56. Kg1 {[%emt 0:00:04]} Ka4 {[%emt 0:00:01]} 57. Rf4 {[%emt 0:00:04]} Qe3+ {[%emt 0:00:05]} 58. Kg2 {[%emt 0:00:01]} Qe2+ {[%emt 0:00:02]} 59. Rf2 {[%emt 0:00:07]} Qe4+ {[%emt 0:00:01]} 60. Kg1 {[%emt 0:00:02]} Kb3 {[%emt 0:00:01]} 61. Rf4 {[%emt 0:00:17]} Qe3+ {[%emt 0:00:08]} 62. Rf2 {[%emt 0:00:01]} Qd3 {[%emt 0:00:13]} 63. Kg2 {[%emt 0:00:04]} Qb1 {[%emt 0:00:05]} 64. Re2 {[%emt 0:00:08]} Qa1 {[%emt 0:00:02]} 65. Rf2 {[%emt 0:00:13]} Qa8+ {[%emt 0:00:02]} 66. Kg1 {[%emt 0:00:04]} Qb7 {[%emt 0:00:05]} 67. Re2 {[%emt 0:00:11]} Qh7 {[%emt 0:01:10]} 68. Kg2 {[%emt 0:00:13]} Ka4 {[%emt 0:00:03]} 69. Rf2 {[%emt 0:00:13]} Qd3 {[%emt 0:00:06]} 70. Rf4 {[%emt 0:00:05]} Kb5 {[%emt 0:00:15]} 71. Rf2 {[%emt 0:00:25]} Kc6 {[%emt 0:00:02]} 72. Rf4 {[%emt 0:00:19]} Kd5 {[%emt 0:00:02]} 73. Kg1 {[%emt 0:00:03]} Qe2 {[%emt 0:00:03]} 74. Kh1 {[%emt 0:00:11]} Qe1+ {[%emt 0:00:21]} 75. Kg2 {[%emt 0:00:01]} Qd1 {[%emt 0:00:02]} 76. Rf1 {[%emt 0:01:20]} Qe2+ {[%emt 0:00:17]} 77. Rf2 {[%emt 0:00:01]} Qe4+ {[%emt 0:00:02]} 78. Kg1 {[%emt 0:00:58]} Qb1+ {[%emt 0:01:19]} 79. Rf1 {[%emt 0:00:05]} Qe4 {[%emt 0:00:05]} 80. Rf4 {[%emt 0:00:01]} Qd3 {[%emt 0:00:13]} 81. Kf2 {[%emt 0:00:14]} Qc2+ {[%emt 0:00:25]} 82. Kg1 {[%emt 0:00:01]} b5 {[%emt 0:00:05]} 83. Kh1 {[%emt 0:00:15]} Qe2 {[%emt 0:00:13]} 84. Kg1 {[%emt 0:00:01]} Ke6 {[%emt 0:00:14]} 85. Rf8 {[%emt 0:00:16]} Qe3+ {[%emt 0:00:05]} 86. Kg2 {[%emt 0:00:04]} Qe4+ {[%emt 0:00:02]} 87. Kg1 {[%emt 0:00:03]} Qd3 {[%emt 0:00:04]} 88. Re8+ {[%emt 0:00:09]} Kf5 {[%emt 0:00:04]} 89. Re5+ {[%emt 0:00:01]} Kf6 {[%emt 0:00:02]} 90. Rxb5 {[%emt 0:00:27]} Qd1+ {[%emt 0:00:03]} 91. Kg2 {[%emt 0:00:02]} Qc2+ {[%emt 0:00:36]} 92. Kg1 {[%emt 0:00:02] Ke5} 1/2-1/2

[Event "RUS-chT Men Rapid 2019"]
[Site "Sochi"]
[Date "2019.10.19"]
[Round "9.4"]
[White "Popov, Ivan"]
[Black "Garifullina, Leya"]
[Result "1-0"]
[ECO "B90"]
[WhiteElo "2611"]
[BlackElo "2330"]
[Annotator "ChessBase"]
[PlyCount "61"]
[EventDate "2019.10.18"]
[EventType "swiss"]
[EventCountry "RUS"]
[SourceTitle "playchess.com"]
[Source "ChessBase"]
[SourceQuality "1"]
[TimeControl "900+10"]

1. e4 {[%emt 0:00:00]} c5 {[%emt 0:00:00]} 2. Nf3 {[%emt 0:00:00]} d6 {[%emt 0:00:00]} 3. d4 {[%emt 0:00:00]} cxd4 {[%emt 0:00:00]} 4. Nxd4 {[%emt 0:00:00]} Nf6 {[%emt 0:00:00]} 5. Nc3 {[%emt 0:00:00]} a6 {[%emt 0:00:00]} 6. h3 {[%emt 0:00:00]} e5 {[%emt 0:00:03]} 7. Nde2 {[%emt 0:00:00]} b5 {[%emt 0:00:18]} 8. Ng3 {[%emt 0:00:13]} Bb7 {[%emt 0:00:20]} 9. Bg5 {[%emt 0:00:13]} Nbd7 {[%emt 0:00:11]} 10. a4 {[%emt 0:01:01]} b4 {[%emt 0:00:12]} 11. Nd5 {[%emt 0:00:02]} Bxd5 {[%emt 0:00:16]} 12. exd5 {[%emt 0:00:01]} h6 {[%emt 0:00:14]} 13. Bxf6 {[%emt 0:01:21]} Nxf6 {[%emt 0:00:02]} 14. Bc4 {[%emt 0:00:07]} Qc8 {[%emt 0:00:55]} 15. Qe2 {[%emt 0:00:38]} Be7 {[%emt 0:01:31]} 16. a5 {[%emt 0:01:05]} O-O {[%emt 0:00:26]} 17. O-O {[%emt 0:00:03]} Re8 {[%emt 0:01:39]} 18. Rfd1 {[%emt 0:01:19]} Bf8 {[%emt 0:01:48]} 19. Bb3 {[%emt 0:02:51]} Rd8 {[%emt 0:03:01]} 20. Ba4 {[%emt 0:00:26]} Rb8 {[%emt 0:00:03]} 21. Bc6 {[%emt 0:00:17]} g6 {[%emt 0:00:56]} 22. Rd3 {[%emt 0:03:04]} Kg7 {[%emt 0:00:25]} 23. Rf3 {[%emt 0:01:41]} Nd7 {[%emt 0:01:08]} 24. Nh5+ {[%emt 0:00:12]} gxh5 {[%emt 0:00:38]} 25. Rg3+ {[%emt 0:00:01]} Kf6 {[%emt 0:00:25]} 26. Qxh5 {[%emt 0:01:03]} Ke7 {[%emt 0:00:36]} 27. Re1 {[%emt 0:00:03]} Nf6 {[%emt 0:00:38]} 28. Rxe5+ {[%emt 0:00:18]} dxe5 {[%emt 0:00:31]} 29. Qxe5+ {[%emt 0:00:02]} Qe6 {[%emt 0:00:02]} 30. dxe6 {[%emt 0:00:10]} Rd6 {[%emt 0:00:16]} 31. Rf3 {[%emt 0:00:24]} 1-0

[Event "RUS-chT Men Rapid 2019"]
[Site "Sochi"]
[Date "2019.10.19"]
[Round "9.6"]
[White "Khegay, Dmitriy"]
[Black "Lugovskoy, Maxim"]
[Result "0-1"]
[ECO "C05"]
[WhiteElo "2509"]
[BlackElo "2436"]
[Annotator "ChessBase"]
[PlyCount "54"]
[EventDate "2019.10.18"]
[EventType "swiss"]
[EventCountry "RUS"]
[SourceTitle "playchess.com"]
[Source "ChessBase"]
[SourceQuality "1"]
[TimeControl "900+10"]

1. e4 {[%emt 0:00:00]} e6 {[%emt 0:00:00]} 2. d4 {[%emt 0:00:00]} d5 {[%emt 0:00:00]} 3. Nd2 {[%emt 0:00:00]} Nf6 {[%emt 0:00:00]} 4. e5 {[%emt 0:00:05]} Nfd7 {[%emt 0:00:00]} 5. f4 {[%emt 0:00:17]} c5 {[%emt 0:00:00]} 6. c3 {[%emt 0:00:04]} Qb6 {[%emt 0:00:07]} 7. Ndf3 {[%emt 0:00:04]} Nc6 {[%emt 0:00:11]} 8. g3 {[%emt 0:00:03]} cxd4 {[%emt 0:00:04]} 9. cxd4 {[%emt 0:00:01]} f6 {[%emt 0:00:17]} 10. Bd3 {[%emt 0:00:30]} Be7 {[%emt 0:00:36]} 11. Kf1 {[%emt 0:00:42]} g5 {[%emt 0:01:35]} 12. exf6 {[%emt 0:00:34]} Nxf6 {[%emt 0:00:01]} 13. fxg5 {[%emt 0:00:33]} Ne4 {[%emt 0:00:01]} 14. Kg2 {[%emt 0:00:02]} e5 {[%emt 0:01:00]} 15. Bxe4 {[%emt 0:01:43]} dxe4 {[%emt 0:00:03]} 16. Nxe5 {[%emt 0:00:01]} Nxe5 {[%emt 0:00:33]} 17. dxe5 {[%emt 0:00:01]} O-O {[%emt 0:00:30]} 18. Qe2 {[%emt 0:00:23]} Bc5 {[%emt 0:01:03]} 19. Bf4 {[%emt 0:00:19]} Be6 {[%emt 0:00:26]} 20. h4 {[%emt 0:02:27]} Rad8 {[%emt 0:00:34]} 21. Nh3 {[%emt 0:00:22]} Rd3 {[%emt 0:01:46]} 22. b3 {[%emt 0:00:50]} Qc6 {[%emt 0:00:35]} 23. Rad1 {[%emt 0:04:00]} Rfd8 {[%emt 0:00:11]} 24. Nf2 {[%emt 0:04:18]} e3+ 25. Kh2 Rd2 {[%emt 0:00:45]} 26. Bxe3 {[%emt 0:01:26]} Rxe2 {[%emt 0:00:15]} 27. Rxd8+ {[%emt 0:00:01]} Kg7 {[%emt 0:00:07]} 0-1

[Event "RUS-chT Men Rapid 2019"]
[Site "Sochi"]
[Date "2019.10.19"]
[Round "9.7"]
[White "Vastrukhin, Oleg"]
[Black "Pogromsky, Mikhail"]
[Result "1/2-1/2"]
[ECO "A00"]
[WhiteElo "2428"]
[BlackElo "2411"]
[Annotator "NA"]
[PlyCount "39"]
[EventDate "2019.10.18"]
[EventType "swiss"]
[EventCountry "RUS"]
[SourceTitle "playchess.com"]
[Source "ChessBase"]
[SourceQuality "1"]
[TimeControl "900+10"]

1. g3 {[%emt 0:00:00]} Nf6 {[%emt 0:00:05]} 2. Bg2 {[%emt 0:00:00]} e6 {[%emt 0:00:28]} 3. Nf3 {[%emt 0:00:07]} b6 {[%emt 0:00:07]} 4. O-O {[%emt 0:00:05]} Bb7 {[%emt 0:00:01]} 5. d3 {[%emt 0:00:01]} d6 {[%emt 0:00:13]} 6. e4 {[%emt 0:00:18]} Be7 {[%emt 0:00:40]} 7. a4 {[%emt 0:00:21]} a6 {[%emt 0:00:10]} 8. e5 {[%emt 0:00:24]} dxe5 {[%emt 0:00:10]} 9. Nxe5 {[%emt 0:00:05]} Bxg2 {[%emt 0:00:08]} 10. Kxg2 {[%emt 0:00:01]} Qd5+ {[%emt 0:00:01]} 11. Qf3 {[%emt 0:00:08]} Qxf3+ {[%emt 0:00:04]} 12. Kxf3 {[%emt 0:00:04]} Nfd7 {[%emt 0:00:08]} 13. Nxd7 {[%emt 0:02:12]} Kxd7 {[%emt 0:00:56]} 14. Bd2 {[%emt 0:03:27]} Bf6 {[%emt 0:00:48]} 15. Bc3 {[%emt 0:00:01]} Bxc3 {[%emt 0:00:02]} 16. bxc3 {[%emt 0:01:09]} a5 {[%emt 0:00:36]} 17. Nd2 {[%emt 0:00:05]} Na6 {[%emt 0:00:07]} 18. Nb3 {[%emt 0:00:35]} e5 {[%emt 0:00:25]} 19. Rae1 {[%emt 0:01:47]} Rae8 {[%emt 0:00:55]} 20. h4 {[%emt 0:00:17]} 1/2-1/2